bitfinex/quotes_SOLUSD_20230116
["timestamp","ask_amount","ask_price","bid_price","bid_amount"]
[1673853280174,20.0,24.467,24.438,17.0]
[1673853280388,20.0,24.467,24.438,30.52166727]
[1673853280597,20.0,24.467,24.438,17.0]
[1673853280820,20.0,24.467,24.439,33.52166727]
[1673853281015,20.0,24.467,24.44,17.0]
[1673853281232,20.0,24.467,24.441,20.0]
[1673853281430,20.0,24.467,24.442,17.0]
[1673853281851,20.0,24.467,24.443,20.0]
[1673853282074,20.0,24.467,24.444,17.0]
[1673853282390,20.0,24.467,24.444,30.52166727]
[1673853283322,20.0,24.467,24.444,17.0]
[1673853283548,20.0,24.467,24.442,30.52166727]
[1673853283761,20.0,24.467,24.444,13.52166727]
[1673853283952,20.0,24.467,24.445,17.0]
[1673853284281,20.0,24.467,24.446,33.52166727]
[1673853284497,20.0,24.467,24.447,17.0]
[1673853284681,20.0,24.467,24.448,20.0]
[1673853284897,20.0,24.467,24.412,68.3606781]
[1673853285105,20.0,24.467,24.42,19.11]
[1673853285329,20.0,24.465,24.442,27.04333454]
[1673853285539,20.0,24.465,24.442,13.52166727]
[1673853286694,20.0,24.465,24.443,20.0]
[1673853286898,20.0,24.467,24.443,20.0]
[1673853287103,20.0,24.476,24.444,13.52166727]
[1673853287320,20.0,24.476,24.445,40.0]
[1673853287524,20.0,24.476,24.445,20.0]
[1673853287733,20.0,24.476,24.446,13.52166727]
[1673853288069,41.46196354,24.474,24.43,18.93]
[1673853288283,17.0,24.473,24.43,18.93]
[1673853288490,144.6,24.473,24.43,32.45166727]
[1673853288815,144.6,24.473,24.421,57.78104389]
[1673853288816,19.11,24.47,24.421,20.0]
[1673853289018,17.0,24.469,24.423,125.30756727]
[1673853289204,147.6,24.468,24.42,19.11]
[1673853289413,20.0,24.465,24.42,19.11]
[1673853289729,58.46196354,24.464,24.42,19.11]
[1673853289956,147.6,24.463,24.42,19.11]
[1673853290158,41.46196354,24.463,24.422,20.0]
[1673853290374,20.0,24.462,24.422,20.0]
[1673853290591,20.0,24.461,24.423,13.52166727]
[1673853290810,20.0,24.459,24.423,13.52166727]
[1673853291113,20.0,24.457,24.423,13.52166727]
[1673853291956,20.0,24.457,24.425,20.0]
[1673853292142,20.0,24.457,24.426,17.0]
[1673853292357,20.0,24.457,24.425,20.0]
[1673853292579,20.0,24.457,24.426,20.0]
[1673853292789,20.0,24.457,24.4,76.52]
[1673853292790,19.11,24.45,24.418,13.52166727]
[1673853293095,19.11,24.45,24.4,76.52]
[1673853293096,21.46196354,24.449,24.4,19.11]
[1673853293304,19.11,24.44,24.398,20.0]
[1673853293528,20.0,24.439,24.398,20.0]
[1673853293849,37.0,24.438,24.399,13.52166727]
[1673853295109,20.0,24.429,24.381,20.0]
[1673853295320,20.0,24.428,24.391,13.52166727]
[1673853295637,20.0,24.427,24.391,13.52166727]
[1673853296047,56.34425163,24.426,24.383,20.0]
[1673853296369,20.0,24.425,24.383,33.52166727]
[1673853296565,20.0,24.423,24.383,20.0]
[1673853297313,50.56149872,24.423,24.381,20.0]
[1673853297529,18.98,24.42,24.38,18.94]
[1673853297735,37.0,24.419,24.37,18.99]
[1673853297928,20.0,24.418,24.371,20.0]
[1673853298142,17.0,24.417,24.371,20.0]
[1673853298349,77.01099696,24.418,24.371,20.0]
[1673853298591,124.85757344,24.417,24.38,19.11]
[1673853298773,20.0,24.416,24.381,20.0]
[1673853298985,58.76214758,24.416,24.381,20.0]
[1673853299298,86.15796084,24.415,24.382,20.0]
[1673853299520,86.15796084,24.415,24.381,20.0]
[1673853299729,106.15796084,24.414,24.381,20.0]
[1673853300131,88.15129418,24.413,24.371,20.0]
[1673853300346,118.88948699,24.413,24.371,20.0]
[1673853300576,95.51796085,24.412,24.371,20.0]
[1673853300777,128.26682033,24.412,24.371,20.0]
[1673853300988,52.37047993,24.411,24.371,20.0]
[1673853301348,20.0,24.41,24.371,20.0]
[1673853301508,20.0,24.41,24.372,13.52166727]
[1673853301834,52.81854659,24.409,24.373,20.0]
[1673853302041,20.0,24.408,24.371,20.0]
[1673853302239,61.07322692,24.408,24.371,20.0]
[1673853302450,113.67131951,24.408,24.371,20.0]
[1673853302660,113.67131951,24.408,24.372,20.0]
[1673853302983,113.67131951,24.408,24.374,20.0]
[1673853303307,118.3891,24.414,24.38,19.11]
[1673853303501,118.3891,24.414,24.39,19.11]
[1673853303710,118.3891,24.414,24.391,20.0]
[1673853303919,50.82184531,24.424,24.392,17.0]
[1673853304147,138.3901,24.427,24.393,40.0]
[1673853304359,118.3901,24.427,24.4,19.05]
[1673853304583,20.0,24.438,24.401,17.0]
[1673853304770,20.0,24.438,24.402,20.0]
[1673853305110,20.0,24.438,24.404,20.0]
[1673853305306,20.0,24.438,24.41,18.98]
[1673853305618,20.0,24.448,24.41,18.98]
[1673853305810,20.0,24.448,24.42,19.11]
[1673853306019,20.0,24.448,24.422,20.0]
[1673853306226,20.0,24.448,24.421,37.0]
[1673853306227,20.0,24.448,24.423,20.0]
[1673853306455,20.0,24.448,24.424,17.0]
[1673853306859,20.0,24.448,24.425,20.0]
[1673853307087,20.0,24.452,24.426,17.0]
[1673853307406,20.0,24.452,24.427,20.0]
[1673853307612,20.0,24.452,24.428,17.0]
[1673853307802,20.0,24.452,24.429,20.0]
[1673853308013,20.0,24.452,24.43,17.0]
[1673853308440,20.0,24.452,24.428,17.0]
[1673853308649,20.0,24.452,24.429,20.0]
[1673853308890,20.0,24.452,24.43,17.0]
[1673853309278,20.0,24.452,24.431,20.0]
[1673853309603,20.0,24.452,24.432,17.0]
[1673853309823,20.0,24.452,24.433,20.0]
[1673853310133,20.0,24.452,24.434,17.0]
[1673853310530,20.0,24.452,24.431,20.0]
[1673853310745,20.0,24.452,24.421,20.0]
[1673853310956,20.0,24.452,24.422,20.0]
[1673853311185,20.0,24.452,24.423,20.0]
[1673853311612,20.0,24.452,24.424,20.0]
[1673853311809,20.0,24.452,24.426,20.0]
[1673853312131,20.0,24.452,24.427,20.0]
[1673853312347,20.0,24.452,24.428,17.0]
[1673853312751,20.0,24.464,24.43,39.05]
[1673853312950,20.0,24.464,24.432,20.0]
[1673853313163,20.0,24.464,24.433,17.0]
[1673853313388,20.0,24.464,24.44,19.05]
[1673853313601,20.0,24.468,24.441,37.0]
[1673853314014,20.0,24.465,24.441,37.0]
[1673853314223,20.0,24.465,24.442,20.0]
[1673853314434,20.0,24.465,24.443,37.0]
[1673853314967,111.2304,24.469,24.444,20.0]
[1673853315191,20.0,24.478,24.445,37.0]
[1673853315376,20.0,24.465,24.445,37.0]
[1673853315580,137.4671,24.478,24.445,37.0]
[1673853316237,21.46196354,24.477,24.445,37.0]
[1673853316657,20.0,24.476,24.445,37.0]
[1673853317600,20.0,24.476,24.445,20.0]
[1673853317807,20.0,24.476,24.441,20.0]
[1673853318000,20.0,24.474,24.441,20.0]
[1673853318641,20.0,24.474,24.442,20.0]
[1673853318861,20.0,24.474,24.444,20.0]
[1673853319158,137.4671,24.478,24.45,18.95]
[1673853319159,20.0,24.478,24.45,18.95]
[1673853319370,20.0,24.478,24.451,37.0]
[1673853320021,20.0,24.478,24.452,20.0]
[1673853320218,21.46196354,24.488,24.46,76.25]
[1673853320542,118.1676,24.504,24.461,17.0]
[1673853320759,20.0,24.503,24.463,20.0]
[1673853320940,20.0,24.503,24.464,37.0]
[1673853321153,20.0,24.503,24.464,49.75047596]
[1673853321375,20.0,24.503,24.464,62.50095192]
[1673853321596,20.0,24.503,24.465,12.75047596]
[1673853321800,20.0,24.503,24.466,37.0]
[1673853322211,20.0,24.503,24.467,32.75047596]
[1673853322422,20.0,24.503,24.468,17.0]
[1673853322748,20.0,24.503,24.469,32.75047596]
[1673853322960,20.0,24.503,24.47,17.0]
[1673853323154,20.0,24.503,24.471,20.0]
[1673853323367,20.0,24.503,24.472,17.0]
[1673853323993,20.0,24.503,24.473,12.75047596]
[1673853324202,20.0,24.503,24.474,17.0]
[1673853324627,20.0,24.503,24.475,12.75047596]
[1673853324839,20.0,24.503,24.476,37.0]
[1673853325053,40.92765292,24.504,24.48,18.93]
[1673853325274,20.0,24.508,24.481,37.0]
[1673853325580,20.0,24.508,24.481,49.75047596]
[1673853325799,20.0,24.508,24.482,12.75047596]
[1673853325985,20.0,24.508,24.483,17.0]
[1673853326193,20.0,24.508,24.484,20.0]
[1673853326433,20.0,24.508,24.485,17.0]
[1673853326632,20.0,24.508,24.485,29.75047596]
[1673853326953,20.0,24.508,24.486,52.75047596]
[1673853327161,216.673056,24.518,24.487,17.0]
[1673853327376,216.673056,24.518,24.49,19.11]
[1673853327572,216.673056,24.518,24.491,17.0]
[1673853327790,216.673056,24.518,24.493,20.0]
[1673853328005,216.673056,24.518,24.494,20.0]
[1673853328213,103.363756,24.518,24.494,20.0]
[1673853328543,103.363756,24.518,24.495,12.75047596]
[1673853328859,103.363756,24.518,24.496,20.0]
[1673853329266,103.363756,24.518,24.5,19.11]
[1673853329682,20.0,24.517,24.501,32.75047596]
[1673853329889,20.0,24.517,24.481,20.0]
[1673853330113,41.46196354,24.517,24.48,18.93]
[1673853330306,20.0,24.515,24.48,18.93]
[1673853330515,20.0,24.515,24.47,19.11]
[1673853330728,20.0,24.513,24.477,20.0]
[1673853330952,19.11,24.51,24.46,18.95]
[1673853331151,130.6047,24.509,24.463,113.0431]
[1673853331582,130.6047,24.509,24.47,19.11]
[1673853331800,41.46196354,24.508,24.471,20.0]
[1673853332118,21.46196354,24.507,24.471,20.0]
[1673853332424,20.0,24.506,24.47,19.11]
[1673853332615,117.5366,24.505,24.47,19.11]
[1673853332822,20.0,24.504,24.47,19.11]
[1673853333055,41.46196354,24.504,24.471,20.0]
[1673853333247,21.46196354,24.503,24.471,20.0]
[1673853333684,20.0,24.504,24.471,20.0]
[1673853333685,20.0,24.504,24.472,12.75047596]
[1673853334088,227.49656897,24.552,24.472,12.75047596]
[1673853334305,227.49656897,24.552,24.48,19.11]
[1673853334306,111.6267,24.525,24.48,19.11]
[1673853334526,21.46196354,24.519,24.481,20.0]
[1673853334732,20.0,24.516,24.483,20.0]
[1673853335049,20.0,24.516,24.483,19.5]
[1673853335374,20.0,24.516,24.484,32.75047596]
[1673853335589,20.0,24.516,24.485,20.0]
[1673853335787,20.0,24.516,24.486,20.0]
[1673853335982,20.0,24.516,24.487,20.0]
[1673853336311,20.0,24.524,24.49,19.11]
[1673853336525,103.363756,24.518,24.491,20.0]
[1673853336737,103.363756,24.518,24.492,20.0]
[1673853336927,103.363756,24.518,24.492,32.75909676]
[1673853337131,103.363756,24.518,24.493,20.0]
[1673853337347,103.363756,24.518,24.492,20.0]
[1673853337348,103.363756,24.518,24.492,12.75909676]
[1673853337557,20.0,24.517,24.493,20.0]
[1673853337893,20.0,24.517,24.491,20.0]
[1673853338083,20.0,24.517,24.492,20.0]
[1673853338423,103.363756,24.518,24.493,20.0]
[1673853338609,103.363756,24.518,24.494,20.0]
[1673853338814,103.363756,24.518,24.495,20.0]
[1673853339245,103.363756,24.518,24.496,12.75909676]
[1673853339568,20.0,24.517,24.496,12.75909676]
[1673853339775,20.0,24.517,24.49,19.11]
[1673853339979,20.0,24.517,24.475,20.0]
[1673853339980,20.0,24.517,24.493,12.75909676]
[1673853340196,103.363756,24.518,24.493,12.75909676]
[1673853340615,20.0,24.517,24.493,12.75909676]
[1673853341041,20.0,24.517,24.482,132.2727]
[1673853341244,20.0,24.517,24.488,20.0]
[1673853341469,20.0,24.517,24.489,20.0]
[1673853341673,20.0,24.517,24.49,20.0]
[1673853341873,20.0,24.517,24.491,20.0]
[1673853342076,103.363756,24.518,24.491,63.65001065]
[1673853342287,20.0,24.517,24.493,20.0]
[1673853342706,20.0,24.517,24.494,12.75909676]
[1673853342916,103.363756,24.518,24.496,20.0]
[1673853343235,103.363756,24.518,24.497,49.75909676]
[1673853343445,103.363756,24.518,24.498,20.0]
[1673853343761,103.363756,24.518,24.499,37.0]
[1673853344087,103.363756,24.518,24.501,20.0]
[1673853344282,103.363756,24.518,24.502,37.0]
[1673853344504,103.363756,24.518,24.502,49.75909676]
[1673853344703,92.363756,24.518,24.503,20.0]
[1673853344909,92.363756,24.518,24.504,20.0]
[1673853345558,20.0,24.517,24.49,19.11]
[1673853346079,20.0,24.517,24.491,20.0]
[1673853346287,92.363756,24.518,24.491,32.75909676]
[1673853346498,92.363756,24.518,24.501,20.0]
[1673853346711,92.363756,24.518,24.5,18.98]
[1673853346919,92.363756,24.518,24.492,45.5867648]
[1673853347136,92.363756,24.518,24.501,12.75909676]
[1673853347342,92.363756,24.518,24.494,20.0]
[1673853347544,20.0,24.517,24.5,18.99]
[1673853347972,20.0,24.517,24.487,31.18779922]
[1673853348194,20.0,24.517,24.482,112.2727]
[1673853348411,41.46196354,24.517,24.482,112.2727]
[1673853348718,41.46196354,24.517,24.48,12.75909676]
[1673853348719,20.0,24.516,24.48,12.75909676]
[1673853349037,20.0,24.516,24.472,20.0]
[1673853349038,20.0,24.515,24.482,12.75909676]
[1673853349245,20.0,24.514,24.472,20.0]
[1673853349440,20.0,24.513,24.473,12.75909676]
[1673853349770,147.6,24.512,24.47,18.98]
[1673853349987,41.46196354,24.512,24.473,12.75909676]
[1673853350174,21.46196354,24.511,24.48,18.99]
[1673853350379,20.0,24.51,24.48,18.99]
[1673853350599,20.0,24.509,24.481,12.75909676]
[1673853351117,20.0,24.508,24.481,12.75909676]
[1673853351336,20.0,24.51,24.482,20.0]
[1673853351556,20.0,24.51,24.476,65.5867648]
[1673853351748,20.0,24.513,24.483,12.75909676]
[1673853351958,202.718656,24.518,24.484,40.0]
[1673853352170,92.363756,24.518,24.49,18.95]
[1673853352399,92.363756,24.518,24.492,20.0]
[1673853352601,92.363756,24.518,24.493,20.0]
[1673853352813,20.0,24.517,24.493,20.0]
[1673853353234,20.0,24.517,24.485,20.0]
[1673853353442,225.00241954,24.518,24.486,20.0]
[1673853353770,203.540456,24.518,24.49,18.93]
[1673853354083,203.540456,24.518,24.491,20.0]
[1673853354084,20.0,24.517,24.491,20.0]
[1673853354288,20.0,24.53,24.492,20.0]
[1673853354605,402.0,24.626,24.521,66.05982127]
[1673853354606,20.0,24.556,24.521,66.05982127]
[1673853354794,19.11,24.55,24.522,20.0]
[1673853355012,20.0,24.549,24.522,20.0]
[1673853355640,20.0,24.549,24.522,12.75909676]
[1673853355849,20.0,24.549,24.523,20.0]
[1673853356060,20.0,24.549,24.52,20.0]
[1673853356500,20.0,24.549,24.52,32.75909676]
[1673853356923,20.0,24.549,24.521,20.0]
[1673853357354,20.0,24.549,24.522,45.51819352]
[1673853357660,20.0,24.549,24.523,34.01379381]
[1673853357976,20.0,24.555,24.524,37.0]
[1673853358163,20.0,24.555,24.525,20.0]
[1673853358375,20.0,24.555,24.526,17.0]
[1673853358813,20.0,24.555,24.527,34.01379381]
[1673853359026,20.0,24.555,24.529,20.0]
[1673853359237,131.1767,24.557,24.529,20.0]
[1673853359238,111.1767,24.557,24.53,20.0]
[1673853359553,20.0,24.556,24.532,20.0]
[1673853359744,20.0,24.556,24.533,37.0]
[1673853359950,20.0,24.556,24.518,20.0]
[1673853360159,18.97,24.55,24.528,40.78699922]
[1673853360390,18.97,24.55,24.505,20.0]
[1673853360391,19.11,24.54,24.505,20.0]
[1673853360915,20.0,24.539,24.505,20.0]
[1673853361130,20.0,24.539,24.507,20.0]
[1673853361449,21.46196354,24.538,24.506,14.01379381]
[1673853361645,20.0,24.536,24.501,134.4851]
[1673853361859,20.0,24.536,24.501,20.0]
[1673853362599,21.46196354,24.535,24.501,20.0]
[1673853362809,20.0,24.536,24.501,20.0]
[1673853363231,20.0,24.536,24.5,18.95]
[1673853363443,20.0,24.534,24.501,20.0]
[1673853363849,20.0,24.534,24.501,34.01379381]
[1673853364395,20.0,24.534,24.503,20.0]
[1673853364582,21.46196354,24.533,24.503,20.0]
[1673853365018,20.0,24.534,24.504,20.0]
[1673853365429,20.0,24.536,24.505,20.0]
[1673853365647,20.0,24.533,24.506,20.0]
[1673853365866,20.0,24.533,24.507,17.0]
[1673853366051,20.0,24.533,24.508,20.0]
[1673853366267,20.0,24.533,24.509,17.0]
[1673853366480,33.15296908,24.532,24.508,20.0]
[1673853366698,54.61493262,24.532,24.502,20.0]
[1673853366906,18.97,24.53,24.494,20.0]
[1673853367106,18.97,24.53,24.487,116.3509]
[1673853367107,20.0,24.529,24.487,116.3509]
[1673853367318,20.0,24.528,24.488,20.0]
[1673853367527,20.0,24.527,24.488,20.0]
[1673853367735,20.0,24.526,24.486,14.01379381]
[1673853367939,41.46196354,24.526,24.486,14.01379381]
[1673853368149,41.46196354,24.526,24.481,129.2494]
[1673853368150,19.11,24.52,24.481,129.2494]
[1673853368365,20.0,24.518,24.481,129.2494]
[1673853369007,128.6775,24.518,24.481,20.0]
[1673853369743,54.94406568,24.517,24.472,20.0]
[1673853370067,20.0,24.516,24.472,20.0]
[1673853371118,108.6775,24.518,24.48,18.93]
[1673853371329,108.6775,24.518,24.481,20.0]
[1673853371942,20.0,24.517,24.482,17.0]
[1673853372364,20.0,24.517,24.484,20.0]
[1673853372569,20.0,24.517,24.486,20.0]
[1673853372795,20.0,24.517,24.487,20.0]
[1673853373005,20.0,24.517,24.488,20.0]
[1673853373213,20.0,24.53,24.49,19.11]
[1673853373420,20.0,24.53,24.491,37.0]
[1673853374257,20.0,24.53,24.492,20.0]
[1673853374477,20.0,24.53,24.493,37.0]
[1673853375215,20.0,24.53,24.494,20.0]
[1673853375403,20.0,24.53,24.495,17.0]
[1673853375617,108.6775,24.531,24.496,20.0]
[1673853375830,108.6775,24.531,24.501,20.0]
[1673853376055,108.6775,24.531,24.502,17.0]
[1673853376244,108.6775,24.531,24.504,20.0]
[1673853376458,33.15296908,24.53,24.505,17.0]
[1673853376680,33.15296908,24.53,24.506,20.0]
[1673853376878,33.15296908,24.53,24.507,17.0]
[1673853377090,33.15296908,24.53,24.508,20.0]
[1673853377303,20.0,24.539,24.509,37.0]
[1673853377845,30.4518855,24.538,24.51,20.0]
[1673853378053,30.4518855,24.538,24.511,37.0]
[1673853378249,20.0,24.537,24.511,37.0]
[1673853378460,20.0,24.537,24.512,20.0]
[1673853378666,20.0,24.537,24.513,37.0]
[1673853379323,20.0,24.542,24.514,20.0]
[1673853379632,111.9249,24.543,24.515,37.0]
[1673853379847,19.88424312,24.564,24.515,37.0]
[1673853379848,19.88424312,24.569,24.52,18.98]
[1673853380042,112.9209,24.566,24.53,19.11]
[1673853380262,20.0,24.556,24.532,20.0]
[1673853380475,20.0,24.556,24.533,17.0]
[1673853380681,20.0,24.556,24.531,37.0]
[1673853380682,20.0,24.556,24.534,20.0]
[1673853380889,20.0,24.556,24.535,17.0]
[1673853381105,112.9209,24.566,24.535,17.0]
[1673853381314,20.0,24.565,24.536,40.0]
[1673853381529,20.0,24.565,24.537,17.0]
[1673853381731,20.0,24.565,24.538,40.0]
[1673853381945,20.0,24.565,24.539,17.0]
[1673853382153,20.0,24.565,24.538,20.0]
[1673853382364,20.0,24.565,24.54,20.0]
[1673853382576,18.97,24.56,24.521,20.0]
[1673853382990,18.97,24.56,24.51,39.11]
[1673853383201,20.0,24.559,24.51,39.11]
[1673853383633,20.0,24.558,24.51,39.11]
[1673853383838,20.0,24.557,24.511,20.0]
[1673853384052,20.0,24.556,24.511,20.0]
[1673853384261,20.0,24.555,24.511,20.0]
[1673853384478,20.0,24.554,24.51,19.11]
[1673853384671,19.08,24.54,24.5,18.95]
[1673853384992,19.08,24.54,24.495,117.9729]
[1673853385204,20.0,24.538,24.496,20.0]
[1673853385616,20.0,24.538,24.49,19.11]
[1673853385617,20.0,24.536,24.49,19.11]
[1673853385827,20.0,24.535,24.49,19.11]
[1673853386041,20.0,24.529,24.488,20.0]
[1673853386255,20.0,24.528,24.482,20.0]
[1673853386683,20.0,24.527,24.482,20.0]
[1673853387003,19.11,24.52,24.47,19.05]
[1673853387313,20.0,24.519,24.471,20.0]
[1673853387721,189.54027901,24.518,24.471,20.0]
[1673853388036,71.96914568,24.517,24.471,20.0]
[1673853388565,20.0,24.517,24.471,20.0]
[1673853389195,20.0,24.517,24.472,17.0]
[1673853389518,20.0,24.517,24.48,19.11]
[1673853389730,20.0,24.517,24.482,20.0]
[1673853389922,20.0,24.517,24.483,17.0]
[1673853390354,20.0,24.517,24.484,20.0]
[1673853390564,20.0,24.517,24.485,20.0]
[1673853390773,20.0,24.517,24.48,19.11]
[1673853390987,20.0,24.517,24.473,20.0]
[1673853391607,20.0,24.517,24.48,19.11]
[1673853392360,20.0,24.517,24.473,20.0]
[1673853392876,20.0,24.517,24.474,20.0]
[1673853393087,20.0,24.517,24.48,18.95]
[1673853393299,71.96914568,24.517,24.481,20.0]
[1673853393509,20.0,24.517,24.481,20.0]
[1673853394357,20.0,24.517,24.474,20.0]
[1673853394674,20.0,24.515,24.47,19.11]
[1673853395926,20.0,24.515,24.473,20.0]
[1673853396558,20.0,24.515,24.475,20.0]
[1673853396790,20.0,24.515,24.476,20.0]
[1673853397520,20.0,24.509,24.476,20.0]
[1673853397734,20.0,24.509,24.469,20.0]
[1673853398050,20.0,24.509,24.47,20.0]
[1673853398259,20.0,24.509,24.471,20.0]
[1673853398474,20.0,24.507,24.471,20.0]
[1673853398781,20.0,24.507,24.472,20.0]
[1673853399400,54.65581234,24.506,24.472,20.0]
[1673853399603,20.0,24.507,24.463,20.0]
[1673853399814,119.738,24.505,24.463,20.0]
[1673853400034,138.6644,24.504,24.46,18.95]
[1673853400457,160.12636354,24.504,24.46,18.95]
[1673853401303,21.46196354,24.503,24.46,18.95]
[1673853401508,20.0,24.502,24.461,20.0]
[1673853401724,20.0,24.502,24.462,14.01379381]
[1673853401937,19.11,24.5,24.45,19.05]
[1673853402127,20.0,24.498,24.453,14.01379381]
[1673853402463,40.33008079,24.497,24.457,20.0]
[1673853402672,40.33008079,24.497,24.454,14.01379381]
[1673853402885,20.0,24.496,24.457,20.0]
[1673853403494,60.33008079,24.496,24.457,20.0]
[1673853403704,20.0,24.496,24.458,14.01379381]
[1673853403916,40.33008079,24.498,24.46,18.93]
[1673853404141,20.0,24.503,24.46,18.93]
[1673853404330,20.0,24.503,24.461,28.02758762]
[1673853404661,20.0,24.503,24.462,20.0]
[1673853404987,20.0,24.503,24.463,17.0]
[1673853405179,21.46196354,24.502,24.464,20.0]
[1673853405390,19.11,24.5,24.465,17.0]
[1673853405806,41.46196354,24.499,24.466,20.0]
[1673853406013,41.46196354,24.499,24.464,20.0]
[1673853406229,21.46196354,24.498,24.45,18.93]
[1673853406445,18.97,24.49,24.45,18.93]
[1673853406667,20.0,24.489,24.443,118.8313]
[1673853406986,20.0,24.488,24.444,20.0]
[1673853407393,20.0,24.488,24.445,14.01379381]
[1673853407730,20.0,24.488,24.446,20.0]
[1673853408261,21.46196354,24.487,24.446,20.0]
[1673853408460,21.46196354,24.487,24.45,19.11]
[1673853408652,20.0,24.488,24.451,20.0]
[1673853409085,20.0,24.488,24.451,34.01379381]
[1673853409301,20.0,24.488,24.453,20.0]
[1673853409711,20.0,24.491,24.454,37.0]
[1673853409920,20.0,24.501,24.46,19.11]
[1673853410131,20.0,24.501,24.461,17.0]
[1673853410461,20.0,24.501,24.463,20.0]
[1673853410663,20.0,24.501,24.464,37.0]
[1673853410865,20.0,24.501,24.465,20.0]
[1673853411080,20.0,24.501,24.466,17.0]
[1673853411402,20.0,24.501,24.468,20.0]
[1673853411593,20.0,24.501,24.469,17.0]
[1673853411799,20.0,24.491,24.47,20.0]
[1673853412035,20.0,24.491,24.471,17.0]
[1673853412240,20.0,24.491,24.472,20.0]
[1673853412443,20.0,24.491,24.473,17.0]
[1673853412863,20.0,24.491,24.474,20.0]
[1673853413063,20.0,24.491,24.475,17.0]
[1673853413274,20.0,24.491,24.476,20.0]
[1673853413499,20.0,24.491,24.477,17.0]
[1673853413695,20.0,24.491,24.478,20.0]
[1673853413907,20.0,24.491,24.479,17.0]
[1673853414233,20.0,24.491,24.48,20.0]
[1673853414453,20.0,24.491,24.481,17.0]
[1673853416026,20.0,24.5,24.481,17.0]
[1673853416640,20.0,24.501,24.481,17.0]
[1673853416856,20.0,24.517,24.483,20.0]
[1673853417077,109.6653,24.512,24.484,37.0]
[1673853417393,20.0,24.511,24.485,17.0]
[1673853417792,20.0,24.511,24.486,20.0]
[1673853418006,20.0,24.512,24.487,17.0]
[1673853418331,129.6653,24.521,24.488,20.0]
[1673853418654,129.6653,24.521,24.489,31.01379381]
[1673853418861,20.0,24.517,24.49,40.0]
[1673853419077,20.0,24.517,24.492,20.0]
[1673853419263,20.0,24.52,24.493,20.0]
[1673853419475,20.0,24.52,24.494,17.0]